bitfinex-derivatives/quotes_ETHF0:USTF0_20240826
["timestamp","ask_amount","ask_price","bid_price","bid_amount"]
[1724633295505,3.2078,2754.0,2753.9,0.36294]
[1724633295714,3.2078,2754.0,2753.9,2.87294]
[1724633295906,3.2078,2754.0,2753.9,6.50414]
[1724633296094,0.00544593,2754.2,2754.1,0.36292]
[1724633296593,0.00544593,2754.2,2754.1,3.99412]
[1724633297791,0.00544593,2754.2,2754.0,3.5781]
[1724633297792,0.00544593,2754.2,2754.0,0.73322]
[1724633298297,0.00544593,2754.2,2754.1,0.36292]
[1724633298904,0.00544593,2754.2,2754.0,0.3703]
[1724633299202,0.36835593,2754.2,2754.0,0.3703]
[1724633299400,0.00544593,2754.2,2754.1,0.36292]
[1724633299905,0.00544593,2754.2,2754.1,3.99412]
[1724633301511,0.00544593,2754.2,2754.0,0.3703]
[1724633301512,0.00544593,2754.2,2754.0,0.73322]
[1724633302405,0.00544593,2754.2,2754.1,0.36292]
[1724633305524,0.00544593,2754.2,2754.1,3.99412]
[1724633305722,0.00023167,2754.2,2754.1,3.99412]
[1724633306807,3.2078,2754.8,2754.1,3.6312]
[1724633307110,8.94485812,2754.7,2754.6,2.51]
[1724633310214,8.94485812,2754.7,2754.6,2.8699]
[1724633310410,9.30769812,2754.7,2754.6,2.8699]
[1724633310610,0.36285,2754.6,2754.3,2.87288]
[1724633310912,0.74705,2754.6,2754.4,0.36287]
[1724633311815,0.36287,2754.5,2754.3,2.87288]
[1724633312016,12.18056125,2754.5,2754.1,0.3599]
[1724633312207,12.18056125,2754.5,2753.7,0.00544593]
[1724633312208,3.2078,2754.2,2753.7,0.00544593]
[1724633312515,0.36294,2753.9,2753.7,0.00544593]
[1724633313415,0.3842,2754.1,2753.7,0.00544593]
[1724633313718,0.3842,2754.1,2753.9,0.36294]
[1724633314514,0.3842,2754.1,2754.0,0.36293]
[1724633314710,4.187,2754.5,2753.9,3.6312]
[1724633314905,3.2078,2754.6,2754.5,0.36286]
[1724633315300,0.3782,2754.7,2754.5,3.9972]
[1724633315511,3.21324593,2754.9,2754.7,0.36283]
[1724633315718,3.21324593,2754.9,2754.7,2.87283]
[1724633315917,3.21324593,2754.9,2754.8,0.36282]
[1724633316415,3.21324593,2754.9,2754.7,2.51]
[1724633316416,3.21324593,2754.9,2754.7,2.87283]
[1724633316617,3.21324593,2754.9,2754.7,2.51]
[1724633317409,0.00544593,2754.9,2754.7,2.87284]
[1724633318718,0.00544593,2754.9,2754.8,0.36282]
[1724633319222,0.00544593,2754.9,2754.8,3.6296]
[1724633321117,0.00544593,2754.9,2754.5,0.3668]
[1724633321313,0.00544593,2754.9,2754.2,1.30840001]
[1724633321620,0.9071,2754.7,2754.1,0.3661]
[1724633321915,0.3629,2754.3,2753.9,0.36294]
[1724633322123,9.37529865,2754.6,2753.8,3.82490001]
[1724633322317,0.36288,2754.4,2754.0,0.36292]
[1724633322517,9.25902275,2754.4,2754.0,0.36292]
[1724633322819,0.3629,2754.3,2753.9,0.36294]
[1724633324112,0.3629,2754.3,2754.0,0.36293]
[1724633324307,8.89614275,2754.5,2753.8,2.8794]
[1724633324517,9.25900275,2754.5,2754.1,0.36291]
[1724633324708,9.25900275,2754.5,2753.9,4.18272721]
[1724633324709,8.89614275,2754.5,2754.2,0.3629]
[1724633325748,8.89614275,2754.5,2753.9,4.18272721]
[1724633325749,8.89614275,2754.5,2754.3,0.36289]
[1724633325920,3.92706,2754.6,2754.4,0.36287]
[1724633325921,3.5642,2754.6,2754.4,0.36287]
[1724633327019,0.90691,2755.3,2754.2,0.3844]
[1724633327020,4.2716335,2756.2,2754.5,15.75249449]
[1724633327319,0.379,2756.3,2755.7,2.51]
[1724633327514,3.2078,2756.1,2755.4,2.51]
[1724633327820,0.36268,2755.9,2755.4,2.51]
[1724633328013,0.37098728,2755.9,2755.4,2.51942782]
[1724633328316,5.70338462,2755.8,2755.4,5.72722782]
[1724633328527,5.34069462,2755.8,2755.4,5.72722782]
[1724633328727,5.34069462,2755.8,2755.4,6.08996782]
[1724633329714,5.34069462,2755.8,2755.4,5.72722782]
[1724633330712,0.36271,2755.7,2755.4,5.72722782]
[1724633330914,5.34069462,2755.8,2755.4,2.51942782]
[1724633331117,0.36272,2755.6,2755.4,2.51942782]
[1724633333018,0.36271,2755.7,2755.4,2.51942782]
[1724633334132,5.70339462,2755.8,2755.4,2.88216782]
[1724633334518,5.70339462,2755.8,2755.4,6.08996782]
[1724633334822,5.70339462,2755.8,2755.4,6.08995782]
[1724633335421,0.36271,2755.7,2755.4,5.72722782]
[1724633335624,0.36272,2755.6,2755.4,5.72722782]
[1724633336034,0.36271,2755.7,2755.4,5.72722782]
[1724633336323,0.36271,2755.7,2755.4,2.51942782]
[1724633336523,0.36273,2755.5,2755.4,0.00942782]
[1724633336724,0.9069,2755.3,2754.4,2.51]
[1724633336923,5.0,2755.7,2754.4,2.51]
[1724633336924,3.5779,2755.2,2754.4,2.51]
[1724633337121,0.36281,2755.0,2754.5,0.36286]
[1724633337426,0.36281,2755.0,2754.4,2.51]
[1724633337432,9.43699649,2754.9,2754.4,2.87287]
[1724633337727,9.43699649,2754.9,2754.4,2.88166814]
[1724633337728,0.36281,2754.9,2754.4,2.88166814]
[1724633338232,9.12113786,2754.8,2754.4,2.88166814]
[1724633338724,9.48396786,2754.8,2754.4,2.51879814]
[1724633338934,9.48396786,2754.8,2754.5,3.2078]
[1724633339135,9.12113786,2754.8,2754.5,3.2078]
[1724633339627,9.12113786,2754.8,2754.5,3.57066]
[1724633339931,9.12113786,2754.8,2754.5,3.2078]
[1724633340325,9.12113786,2754.8,2754.5,3.57066]
[1724633340526,9.12113786,2754.8,2754.5,3.2078]
[1724633341527,9.12113786,2754.8,2754.4,2.51879814]
[1724633341730,12.32893786,2754.8,2754.4,2.51879814]
[1724633341934,0.36284,2754.7,2754.4,2.51879814]
[1724633342134,0.3788,2754.6,2754.4,2.51879814]
[1724633342432,0.74165,2754.6,2754.4,2.51879814]
[1724633343429,0.3788,2754.6,2754.4,2.51879814]
[1724633344236,0.74165,2754.6,2754.4,2.51879814]
[1724633344532,0.3659,2754.5,2754.4,2.51879814]
[1724633344926,0.72876,2754.5,2754.4,2.51879814]
[1724633345235,13.89047835,2754.5,2754.4,0.00879814]
[1724633345734,13.52761835,2754.5,2754.4,0.00879814]
[1724633346626,13.89047835,2754.5,2754.4,0.00879814]
[1724633347424,9.89721835,2754.5,2754.4,0.00879814]
[1724633347633,9.17801835,2754.5,2754.4,0.00879814]
[1724633348729,0.3631,2754.8,2754.5,0.36285]
[1724633348932,0.3631,2754.8,2754.6,0.36285]
[1724633349130,9.10644989,2754.7,2754.6,0.36285]
[1724633349325,9.10644989,2754.7,2754.4,2.51879814]
[1724633349326,9.10644989,2754.7,2754.5,0.36286]
[1724633349722,9.46928989,2754.7,2754.4,2.88166814]
[1724633349921,0.36286,2754.5,2754.4,2.51879814]
[1724633350123,0.36286,2754.5,2754.4,0.00879814]
[1724633350327,3.99326,2754.5,2754.4,0.00879814]
[1724633351833,17.36749224,2754.5,2754.4,0.00879814]
[1724633352435,14.15969224,2754.5,2754.4,0.00879814]
[1724633352834,17.36749224,2754.5,2754.4,0.00879814]
[1724633353336,14.15969224,2754.5,2754.4,0.00879814]
[1724633353636,13.25252224,2754.5,2754.4,0.00879814]
[1724633354332,14.15969224,2754.5,2754.4,0.00879814]
[1724633354637,22.36749224,2754.5,2754.4,0.00544593]
[1724633354940,22.36749224,2754.5,2753.8,6.0702]
[1724633354941,0.36294,2753.9,2753.8,6.0702]
[1724633355139,0.36294,2753.9,2753.8,2.8624]
[1724633355342,0.36294,2753.9,2753.8,2.51]
[1724633355735,0.36624992,2753.9,2753.8,2.51457053]
[1724633356239,3.99744992,2753.9,2753.8,0.00457053]
[1724633360032,7.20524992,2753.9,2753.8,0.00457053]
[1724633360229,7.20524992,2753.9,2753.6,0.00544593]
[1724633360230,0.36297,2753.7,2753.6,0.00544593]
[1724633360632,9.57503743,2753.7,2753.6,0.00544593]
[1724633361034,9.57503743,2753.7,2753.2,2.51]
[1724633361035,0.36302,2753.3,2753.2,2.51]
[1724633361242,0.36302,2753.3,2753.2,2.513143]
[1724633362145,0.36301,2753.4,2753.2,2.513143]
[1724633363034,0.36302,2753.3,2753.2,2.513143]
[1724633364032,0.36302,2753.4,2753.2,2.513143]
[1724633364237,9.06125169,2753.5,2753.3,0.36301]
[1724633364438,4.187,2753.8,2753.4,0.3865]
[1724633364638,0.36298,2753.7,2753.4,0.3865]
[1724633364938,9.15182491,2753.6,2753.4,0.3865]
[1724633365135,0.36298,2753.6,2753.4,0.3865]
[1724633365347,4.187,2753.8,2753.4,0.3865]
[1724633365752,0.36299,2753.6,2753.4,0.3865]
[1724633367455,0.363,2753.5,2753.4,0.3865]
[1724633368550,0.36302,2753.3,2753.2,0.003143]
[1724633369848,0.363,2753.5,2753.2,2.876173]
[1724633370054,0.36301,2753.4,2753.3,0.3671]
[1724633370644,9.18572103,2753.7,2753.2,2.513143]
[1724633370645,0.36302,2753.3,2753.2,2.513143]
[1724633371353,0.36302,2753.3,2753.2,0.003143]
[1724633371746,1.07132,2753.3,2753.2,0.003143]
[1724633372051,13.58832247,2753.3,2753.2,0.003143]
[1724633374658,13.23372247,2753.3,2753.2,0.003143]
[1724633374965,8.88500247,2753.3,2753.2,0.366173]
[1724633375259,0.36298,2753.7,2753.4,0.36301]
[1724633375455,0.36298,2753.7,2753.5,0.3556]
[1724633376847,4.54996,2753.8,2753.5,0.71859]
[1724633377253,0.00330992,2753.9,2753.5,0.3556]
[1724633377463,0.00330992,2753.9,2753.8,2.87296]
[1724633377962,0.00330992,2753.9,2753.8,6.50416]
[1724633379153,0.00330992,2753.9,2753.8,6.1412]
[1724633379352,0.00330992,2753.9,2753.5,6.0734]
[1724633379563,0.00330992,2753.9,2753.5,6.43638]
[1724633380058,0.00330992,2753.9,2753.5,6.0734]
[1724633380263,0.36298,2753.7,2753.5,6.0734]
[1724633380450,1.12566,2753.8,2753.5,6.0734]
[1724633380654,0.7627,2753.8,2753.5,6.0734]
[1724633380972,0.36625992,2753.9,2753.5,6.43639]
[1724633381465,0.36296,2753.8,2753.5,6.0734]
[1724633382060,9.28299171,2753.7,2753.5,2.8656]
[1724633382264,0.36301,2753.4,2753.2,2.517143]
[1724633384662,0.363,2753.5,2753.2,2.517143]
[1724633385272,0.36301,2753.4,2753.2,2.517143]
[1724633386466,0.3819,2753.6,2753.2,2.517143]
[1724633386467,0.363,2753.5,2753.2,2.517143]
[1724633386871,0.36301,2753.4,2753.2,2.517143]
[1724633387176,0.363,2753.5,2753.2,2.517143]
[1724633387369,0.3819,2753.6,2753.4,0.363]
[1724633387563,0.3819,2753.6,2753.5,0.363]
[1724633387759,0.3819,2753.6,2753.4,0.363]
[1724633389259,0.74488,2753.6,2753.3,3.95781]
[1724633389460,0.74488,2753.6,2753.4,0.36301]
[1724633389966,0.74488,2753.6,2753.3,3.57081]
[1724633390363,0.36301,2753.4,2753.2,2.517143]
[1724633390780,0.36301,2753.4,2753.2,2.880173]
[1724633392372,0.36301,2753.4,2753.2,2.517143]
[1724633394274,0.3819,2753.6,2753.3,3.2078]
[1724633394468,0.3819,2753.6,2753.4,0.7428]
[1724633394866,0.74489,2753.6,2753.4,0.3798]
[1724633395965,0.363,2753.5,2753.4,0.3798]
[1724633396578,0.3819,2753.6,2753.3,3.2078]
[1724633396774,0.3819,2753.6,2753.2,0.370173]
[1724633396775,0.36301,2753.4,2753.2,0.370173]
[1724633397774,0.363,2753.5,2753.2,2.517143]
[1724633397976,0.363,2753.5,2753.2,3.82567301]
[1724633398177,0.363,2753.5,2753.2,1.31567301]
[1724633398870,0.363,2753.5,2753.3,0.94550001]
[1724633400472,0.363,2753.5,2753.3,1.30852001]
[1724633401077,0.363,2753.5,2753.3,0.94550001]
[1724633401989,0.3819,2753.6,2753.5,0.363]
[1724633402285,0.3819,2753.6,2753.5,4.51630001]
[1724633402467,0.3819,2753.6,2753.5,4.89260001]
[1724633402878,0.3819,2753.6,2753.5,4.15330001]
[1724633403084,0.363,2753.5,2753.4,0.94550001]
[1724633403273,0.36301,2753.4,2753.3,0.94550001]
[1724633404383,0.36301,2753.4,2753.3,2.76124134]
[1724633404982,0.7503,2753.5,2753.3,3.12426134]
[1724633405285,0.7503,2753.5,2753.4,2.76115673]
[1724633405489,0.7503,2753.5,2753.4,0.94550001]
[1724633405684,0.7503,2753.5,2753.4,2.76114638]
[1724633405993,0.7503,2753.5,2753.4,0.94550001]
[1724633406212,0.7503,2753.5,2753.3,0.94550001]
[1724633406486,0.7503,2753.5,2753.4,0.94550001]
[1724633406887,0.3873,2753.5,2753.4,2.76114397]
[1724633407087,0.7503,2753.5,2753.4,2.76114397]
[1724633407289,0.7503,2753.5,2753.4,0.94550001]
[1724633407991,0.3873,2753.5,2753.4,0.94550001]
[1724633408983,0.7503,2753.5,2753.4,0.94550001]
[1724633409186,0.7503,2753.5,2753.3,0.94550001]
[1724633409687,0.3873,2753.5,2753.4,0.94550001]
[1724633410388,0.74489,2753.6,2753.4,2.76115233]
[1724633410580,0.74489,2753.6,2753.4,1.30851001]
[1724633410795,0.74489,2753.6,2753.5,0.94550001]
[1724633411088,0.74489,2753.6,2753.4,1.30851001]
[1724633411287,0.74489,2753.6,2753.5,0.94550001]
[1724633412701,0.3819,2753.6,2753.5,1.30850001]
[1724633412989,4.19030992,2753.9,2753.8,0.36296]
[1724633413183,4.19030992,2753.9,2753.8,3.82400404]
[1724633413583,4.19030992,2753.9,2753.7,0.95104404]
[1724633413796,0.73576,2753.8,2753.6,0.95104404]
[1724633413986,0.3728,2753.8,2753.6,0.95104404]
[1724633414194,0.3728,2753.7,2753.6,0.95104404]
[1724633414387,0.73577,2753.7,2753.6,0.95104404]
[1724633414586,4.004,2753.7,2753.4,0.95104404]
[1724633414789,0.363,2753.5,2753.4,0.95104404]
[1724633414995,0.363,2753.5,2753.3,4.15884404]
[1724633415187,0.3759,2753.4,2753.3,4.15884404]
[1724633416007,0.73891,2753.4,2753.3,5.97457376]
[1724633416193,0.3728,2753.7,2753.3,4.52186404]
[1724633416391,0.36298,2753.6,2753.5,0.95104404]
[1724633416586,0.363,2753.5,2753.3,4.15884404]
[1724633417603,0.36299,2753.6,2753.3,4.52186404]
[1724633418597,0.36298,2753.6,2753.3,4.52186404]
[1724633418799,0.3728,2753.7,2753.4,0.95104404]
[1724633418800,0.73577,2753.7,2753.4,0.95104404]
[1724633419008,0.73577,2753.7,2753.4,1.31405404]
[1724633419295,0.36299,2753.6,2753.4,0.95104404]
[1724633420504,0.363,2753.5,2753.4,0.95104404]
[1724633420800,0.36301,2753.4,2753.3,0.95104404]
[1724633421004,0.36301,2753.4,2753.2,0.95418704]
[1724633421005,3.632,2753.4,2753.2,0.95418704]
[1724633421202,1.47592,2753.3,2753.2,0.95418704]
[1724633423998,1.47592,2753.3,2753.2,0.003143]
[1724633424900,1.1129,2753.3,2753.2,0.003143]
[1724633425090,1.1129,2753.3,2753.2,3.82721704]
[1724633425091,0.3856,2753.3,2753.2,3.82721704]
[1724633425400,0.7418,2753.8,2753.2,9.74627257]
[1724633425590,1.47977,2753.8,2753.5,0.36299]
[1724633425796,10.62900047,2753.8,2753.5,2.87299]
[1724633426301,0.36297,2753.7,2753.5,2.87299]
[1724633426495,0.36297,2753.7,2753.5,2.51]
[1724633426696,10.26603047,2753.8,2753.4,0.9517984]
[1724633426898,9.0033073,2753.6,2753.2,0.9549414]
[1724633427094,0.36302,2753.3,2753.2,0.9549414]
[1724633427294,0.36302,2753.3,2753.2,2.7707939]
[1724633427692,9.0033073,2753.7,2753.2,2.7707939]
[1724633427693,0.90743,2753.7,2753.2,2.7707939]
[1724633427995,0.36302,2753.4,2753.2,0.9549414]
[1724633428204,0.375,2753.3,2753.2,0.9549414]
[1724633428403,0.375,2753.3,2753.2,2.77078206]
[1724633428804,0.73802,2753.3,2753.2,2.77078206]
[1724633429001,0.73802,2753.3,2753.2,0.003143]
[1724633429002,5.08992,2753.3,2753.2,0.003143]
[1724633430403,10.08992,2753.3,2753.2,0.003143]
[1724633430597,10.99748,2753.3,2753.2,0.003143]
[1724633430813,14.20528,2753.3,2753.2,0.003143]
[1724633431011,1.27068,2753.1,2753.0,0.00544593]
[1724633431206,3.189,2753.1,2752.5,0.9517984]
[1724633431511,0.36316,2752.3,2752.1,0.9517984]
[1724633431713,0.36316,2752.3,2752.0,0.9517984]
[1724633431714,0.7035,2752.2,2752.0,0.9517984]
[1724633432110,0.7035,2752.2,2752.0,0.95567338]
[1724633432308,0.7035,2752.2,2752.0,0.00387498]
[1724633434410,0.00544593,2752.4,2752.2,0.36316]
[1724633434604,0.00544593,2752.4,2752.3,0.35]
[1724633435002,0.00544593,2752.4,2752.3,0.71315]
[1724633435214,0.00544593,2752.4,2752.3,4.34675]
[1724633435820,0.00544593,2752.4,2752.3,7.55455]
[1724633436517,0.00544593,2752.4,2752.3,7.1914]
[1724633437213,0.00544593,2752.4,2752.3,7.55455]
[1724633437421,0.3537,2752.9,2752.5,0.36312]
[1724633437711,9.24912366,2752.8,2752.6,6.0986]
[1724633438010,0.71678,2752.9,2752.6,6.0986]
[1724633438315,0.3537,2752.9,2752.6,6.0986]
[1724633438615,0.71677,2752.9,2752.6,6.0986]
[1724633438910,0.36309,2752.8,2752.6,5.7178]
[1724633439315,0.3537,2752.9,2752.6,5.7178]
[1724633439316,0.3631,2752.7,2752.6,5.7178]
[1724633439513,0.72439,2752.8,2752.6,5.7178]
[1724633439732,0.3537,2752.9,2752.6,5.7178]
[1724633440407,0.36309,2752.8,2752.6,5.7178]
[1724633441009,0.3537,2752.9,2752.3,2.86]
[1724633441205,0.36313,2752.5,2752.2,3.2078]
[1724633441422,0.36312,2752.6,2752.2,6.44477]
[1724633441813,9.211763,2752.8,2752.2,7.0333984]
[1724633442015,9.211763,2752.8,2752.5,3.2078]
[1724633442223,9.211763,2752.8,2752.6,0.74361]
[1724633442524,9.211763,2752.8,2752.7,0.3638]
[1724633443314,0.38094593,2753.0,2752.7,0.3638]
[1724633443514,0.74400593,2753.0,2752.7,0.7269]
[1724633443719,0.38094593,2753.0,2752.7,0.7269]
[1724633444022,0.00544593,2753.0,2752.8,0.36308]
[1724633444514,0.00544593,2753.0,2752.7,0.3638]
[1724633444817,0.00544593,2753.0,2752.8,0.36309]
[1724633445118,0.00544593,2753.0,2752.9,3.57087]
[1724633445312,0.00544593,2753.0,2752.9,11.16681537]
[1724633445512,0.00544593,2753.0,2752.9,17.11861377]
[1724633446019,0.00544593,2753.0,2752.9,11.16681537]
[1724633448510,0.00544593,2753.0,2752.9,7.53401537]
[1724633448715,0.00544593,2753.0,2752.9,3.2078]
[1724633449015,0.00544593,2753.0,2752.9,3.57087]
[1724633449323,0.00544593,2753.0,2752.9,12.20367]
[1724633449523,0.00544593,2753.0,2752.9,12.57867]
[1724633449822,0.00544593,2753.0,2752.9,13.5304684]
[1724633450229,0.00544593,2753.0,2752.9,8.5304684]
[1724633450519,0.00544593,2753.0,2752.9,13.5304684]
[1724633453624,0.00544593,2753.0,2752.9,8.5304684]
[1724633455830,0.00544593,2753.0,2752.9,5.3226684]
[1724633456127,0.00544593,2753.0,2752.9,8.5304684]
[1724633456626,0.00544593,2753.0,2752.9,3.2078]
[1724633456832,0.00544593,2753.0,2752.9,3.57087]
[1724633457733,0.00544593,2753.0,2752.9,4.5226684]
[1724633458517,9.00130593,2753.0,2752.8,0.9517984]
[1724633458725,9.00130593,2753.0,2752.3,3.2078]
[1724633458726,7.74831,2752.9,2752.2,0.9517984]
[1724633458918,14.64887375,2753.0,2752.1,0.00544593]
[1724633458919,3.2078,2752.6,2752.1,0.00544593]
[1724633459121,0.7316,2752.5,2752.1,0.00544593]
[1724633459423,0.3762,2752.4,2752.1,0.00544593]
[1724633459826,9.23637588,2752.3,2752.1,0.00544593]
[1724633461927,0.3762,2752.4,2752.1,0.00544593]
[1724633466625,0.73934,2752.4,2752.1,0.00544593]
[1724633466930,0.36316,2752.3,2752.1,0.00544593]
[1724633467129,0.36318,2752.1,2752.0,0.00387498]
[1724633467334,0.36321,2751.9,2751.4,3.2078]
[1724633467528,0.3677,2751.8,2751.3,4.1595984]
[1724633467725,0.3677,2751.8,2751.3,3.2078]
[1724633468435,0.37219029,2751.8,2751.3,3.21226201]
[1724633469034,0.36323,2751.7,2751.3,3.21226201]
[1724633469532,0.37219029,2751.8,2751.3,3.21226201]
[1724633469730,0.36326,2751.6,2751.3,3.21226201]
[1724633469931,0.3598,2751.5,2751.3,3.21226201]
[1724633471236,0.3598,2751.5,2751.3,0.00446201]
[1724633471626,0.72307,2751.5,2751.3,0.00446201]
[1724633471928,0.36327,2751.4,2751.3,0.00446201]
[1724633472127,0.72306,2751.5,2751.3,0.00446201]
[1724633472529,0.3598,2751.5,2751.3,0.00446201]
[1724633473036,3.6344,2751.4,2751.3,0.00446201]
[1724633473235,3.99767,2751.4,2751.3,0.00446201]
[1724633473735,0.36333,2751.0,2750.6,3.2078]
[1724633474032,0.36333,2751.0,2750.5,0.3706]
[1724633474033,0.36337,2750.7,2750.1,2.51]
[1724633474239,0.36338,2750.6,2750.1,3.23464]
[1724633474426,0.36337,2750.7,2750.1,3.23464]
[1724633474629,0.36336,2750.8,2750.2,0.36343]
[1724633474833,0.36336,2750.8,2750.3,3.2078]
[1724633475038,0.36335,2750.8,2750.3,3.57121]
[1724633475231,0.36335,2750.8,2750.3,3.2078]
[1724633475448,9.89651418,2750.9,2750.3,3.2078]
[1724633475737,0.36336,2750.8,2750.3,3.57122]
[1724633476038,0.36338,2750.6,2750.3,3.2078]
[1724633476224,9.15661997,2750.7,2750.2,0.00421103]
[1724633476428,0.36342,2750.3,2750.2,0.00421103]
[1724633476634,0.36347,2750.0,2749.5,3.2078]
[1724633476835,0.36347,2750.0,2749.1,0.9517984]
[1724633476836,0.3737,2749.9,2749.1,0.36357]
[1724633477038,0.36354,2749.4,2748.7,0.3612]
[1724633477333,0.3721,2749.3,2748.3,3.5677]
[1724633477535,0.3703,2749.2,2748.6,5.7178]
[1724633477737,0.3703,2749.2,2748.9,0.3636]
[1724633478236,0.3703,2749.2,2748.6,5.7178]
[1724633478237,0.3703,2749.2,2748.8,0.36361]
[1724633478437,0.3703,2749.2,2748.9,0.3636]
[1724633478630,0.37572143,2749.3,2748.9,3.2078]
[1724633478829,0.00362143,2749.3,2749.2,0.36356]
[1724633479031,0.00362143,2749.3,2749.2,0.72846]
[1724633479236,0.00362143,2749.3,2749.2,0.3649]
[1724633479436,0.00362143,2749.3,2749.2,0.36356]
[1724633480143,0.00362143,2749.3,2749.0,2.51]
[1724633480538,0.00362143,2749.3,2749.0,2.87358]
[1724633480844,0.00362143,2749.3,2749.0,0.36359]
[1724633481234,0.00362143,2749.3,2748.6,0.7248]
[1724633481427,0.00362143,2749.3,2748.6,3.2348]
[1724633481633,0.00362143,2749.3,2748.9,0.3636]
[1724633481838,0.00362143,2749.3,2749.0,0.36359]
[1724633482039,0.00362143,2749.3,2749.1,0.36358]
[1724633482342,0.00362143,2749.3,2748.9,3.94704562]
[1724633482643,0.00362143,2749.3,2749.0,3.2078]
[1724633482844,0.00362143,2749.3,2749.2,0.36356]
[1724633483034,0.00362143,2749.3,2749.0,3.2078]
[1724633483235,0.00362143,2749.3,2748.6,0.7248]
[1724633483535,0.00362143,2749.3,2748.5,3.2078]
[1724633483735,3.2078,2749.1,2748.3,2.87666293]
[1724633483941,0.36361,2748.9,2748.3,0.36666293]
[1724633484439,9.34641918,2749.0,2748.8,0.004]
[1724633486443,0.39002143,2749.3,2748.8,0.36761]
[1724633486640,0.39002143,2749.3,2748.9,3.5714]
[1724633486842,0.39002143,2749.3,2748.9,3.2078]
[1724633487039,0.39002143,2749.3,2748.8,0.004]
[1724633487040,0.75358143,2749.3,2748.8,0.004]
[1724633487642,0.39002143,2749.3,2749.0,0.36359]
[1724633488730,0.39002143,2749.3,2748.9,0.7308]
[1724633488933,3.57139,2749.1,2748.2,3.2078]
[1724633489139,3.57139,2749.1,2748.2,3.575]
[1724633489333,3.57139,2749.1,2748.3,0.36666293]
[1724633489334,0.36362,2748.8,2748.3,0.36666293]
[1724633489737,0.71904,2748.7,2748.3,0.00298293]
[1724633489946,0.36364,2748.6,2748.3,0.00298293]
[1724633490243,0.36364,2748.6,2747.5,3.2078]
[1724633490244,3.35,2748.4,2747.5,3.2078]
[1724633490433,3.21325593,2748.2,2747.2,3.2078]
[1724633490638,3.21325593,2748.2,2747.6,3.2078]
[1724633491149,3.21325593,2748.2,2747.6,3.21106592]
[1724633491357,9.21260821,2748.1,2747.6,0.00326592]
[1724633491650,9.57631821,2748.1,2747.6,0.00326592]
[1724633491856,9.21260821,2748.1,2747.6,0.00326592]
[1724633492144,0.3554,2748.0,2747.6,0.00326592]
[1724633492647,0.36374,2747.9,2747.6,0.00326592]
[1724633493138,3.6392,2747.9,2747.6,0.00326592]
[1724633493339,9.67184944,2747.8,2747.6,0.00326592]
[1724633493739,0.3832,2747.8,2747.6,0.00326592]
[1724633495143,3.6392,2747.7,2747.6,0.00326592]
[1724633495954,4.00296,2747.7,2747.6,0.00326592]
[1724633496761,17.7944138,2747.7,2746.7,3.35]
[1724633496945,3.2078,2747.3,2746.5,3.2078]
[1724633497140,0.733,2747.2,2746.3,3.35]
[1724633497446,0.733,2747.2,2746.1,0.3535]
[1724633497447,3.2078,2747.0,2746.1,0.71747]
[1724633497644,0.00545593,2746.8,2746.1,3.2078]
[1724633497843,3.2078,2746.7,2746.1,0.00283888]
[1724633498046,0.36393,2746.5,2746.1,0.00283888]
[1724633498248,0.36392,2746.6,2746.3,3.2078]
[1724633498447,9.47553614,2746.7,2746.3,3.2078]
[1724633498643,9.11163614,2746.7,2746.4,0.36392]
[1724633498952,0.00545593,2746.8,2746.7,0.36389]
[1724633499448,0.00545593,2746.8,2746.6,6.9217]
[1724633499652,0.00023146,2746.8,2746.6,6.9217]
[1724633499849,0.00023146,2746.8,2746.7,0.36389]
[1724633500046,0.00379281,2747.0,2746.9,0.36387]
[1724633500248,0.00379281,2747.0,2746.9,3.57167]
[1724633500445,0.00379281,2747.0,2746.9,7.21247]
[1724633503049,0.00379281,2747.0,2746.9,3.2078]
[1724633503358,0.00379281,2747.0,2746.9,7.21247]
[1724633503553,0.00379281,2747.0,2746.9,3.6408]
[1724633503757,0.00379281,2747.0,2746.9,6.8486]
[1724633504054,0.00379281,2747.0,2746.9,3.2078]
[1724633504454,0.00379281,2747.0,2746.7,0.00545593]
[1724633504455,3.64459281,2747.0,2746.7,0.00545593]
[1724633504648,0.3526,2746.9,2746.7,0.00545593]
[1724633505864,0.3526,2746.9,2746.8,3.2078]
[1724633506261,0.3526,2746.9,2746.7,0.00545593]
[1724633506262,0.71647,2746.9,2746.7,0.00545593]
[1724633506756,6.8486,2746.8,2746.1,0.00283888]
[1724633506966,0.36389,2746.7,2746.1,3.21063888]
[1724633507262,12.38028166,2746.8,2746.1,3.21063888]
[1724633507561,9.17248166,2746.8,2746.4,3.2078]
[1724633507861,0.3526,2746.9,2746.6,0.3639]
[1724633508064,4.19079281,2747.0,2746.7,0.36389]
[1724633508265,4.19079281,2747.0,2746.4,3.2078]
[1724633508266,0.00379281,2747.0,2746.4,3.2078]
[1724633508468,0.00379281,2747.0,2746.9,0.36387]
[1724633508769,0.00379281,2747.0,2746.7,0.36389]
[1724633509069,0.00379281,2747.0,2746.9,3.2078]
[1724633509369,0.36764281,2747.0,2746.9,3.2078]
[1724633509755,0.36764281,2747.0,2746.3,0.3865]
[1724633509756,8.64459281,2747.0,2746.3,0.3865]
[1724633509963,0.36391,2746.6,2746.3,3.2078]
[1724633510170,0.3648,2746.9,2746.3,3.57174]
[1724633510363,0.3648,2746.9,2746.3,3.2078]
[1724633510666,0.36388,2746.8,2746.3,3.57174]
[1724633510854,0.3648,2746.9,2746.3,3.2078]
[1724633511053,0.3648,2746.9,2746.1,0.00283888]
[1724633511054,0.36394,2746.4,2746.1,0.00283888]
[1724633511254,0.3572,2746.3,2746.1,3.21063888]
[1724633511660,0.36396,2746.2,2746.1,3.21063888]
[1724633511871,0.3572,2746.3,2746.1,3.21063888]
[1724633512063,0.3532,2746.7,2746.4,0.36393]
[1724633512258,4.55089,2746.8,2746.4,3.2078]
[1724633512259,4.5442,2746.8,2746.4,3.2078]
[1724633512459,3.6408,2746.7,2746.1,0.00283888]
[1724633512773,3.6408,2746.7,2745.5,3.2078]
[1724633512774,3.2078,2746.2,2745.5,3.2078]